Cogmind - Beta 13 @@@ ROGUE MODE // 2024.04.07 @ 01:07:39 Player: Osku Result: Destroyed by Y-45 Defender with Beam Rifle Performance ------------- Evolutions (2) 1000 Regions Visited (3) 600 Robots Destroyed (24) 120 Value Destroyed (604) 604 Prototype IDs (2) 40 Alien Tech Used (0) 0 Bonus (0) 0 TOTAL SCORE: 2364 Bonus ------- None Cogmind --------- Core Integrity 0/550 Matter 300/300 Energy 100/100 System Corruption 9% Temperature Cool (27) Movement Core (350) Ox6 Location -8/Materials Parts ------- > --- POWER (2) -------- (None) > --- PROPULSION (4) --- (None) > --- UTILITY (3) ------ Large Storage Unit > --- WEAPON (2) ------- (None) > --- INVENTORY (15) --- (None) Peak State ------------ > --- POWER ------------ Nuclear Core Nuclear Core > --- PROPULSION ------- Aluminum Leg Aluminum Leg Aluminum Leg > --- UTILITY ---------- Improved Heat Sink Large Storage Unit Propulsion Shielding > --- WEAPON ----------- Spread Laser > --- INVENTORY -------- Mining Laser [Rating: 16] Favorites ----------- Power Ion Engine Engine Ion Engine Power Core Nuclear Core Propulsion Aluminum Leg Leg Aluminum Leg Hover Unit Hover Unit Flight Unit Flight Unit Utility Large Storage Unit Device Shield Generator Storage Large Storage Unit Protection Propulsion Shielding Weapon Light Assault Rifle Energy Gun Spread Laser Ballistic Gun Light Assault Rifle Special Weapon Mining Laser Special Melee Weapon Datajack Build | -11 -10 -9 -8 ------- Run | Yrd Mat Mat Mat Slots Evolved 4 | . . 2 2 Power 1 | . . . 1 Propulsion 2 | . . 2 . Utility 1 | . . . 1 Weapon . | . . . . Parts Attached 41 | 6 16 14 5 Power 6 | 1 2 1 2 Engine 3 | 1 1 1 . Core 3 | . 1 . 2 Reactor . | . . . . Propulsion 16 | 2 4 9 1 Treads . | . . . . Leg 7 | 2 2 3 . Wheel . | . . . . Hover 5 | . 2 3 . Flight 4 | . . 3 1 Utility 7 | 1 3 2 1 Device 4 | . 2 2 . Storage 2 | 1 1 . . Processor . | . . . . Hackware . | . . . . Protection 1 | . . . 1 Artifact . | . . . . Weapon 12 | 2 7 2 1 Energy Gun 3 | 1 1 1 . Energy Cannon . | . . . . Ballistic Gun 5 | 1 4 . . Ballistic Cannon . | . . . . Launcher . | . . . . Special Weapon 2 | . 1 . 1 Impact Weapon . | . . . . Slashing Weapon . | . . . . Piercing Weapon . | . . . . Special Melee Weapon 2 | . 1 1 . Unidentified Prototypes . | . . . . Parts Lost 21 | . 1 10 10 Power 5 | . 1 2 2 Propulsion 7 | . . 3 4 Utility 4 | . . 2 2 Weapon 5 | . . 3 2 Highest Loss Streak 10 | . 1 3 10 To Critical Strikes . | . . . . Average Slot Usage (%) 82 | . 94 65 54 Engine 8 | . 11 6 . Core 2 | . 2 . 10 Leg 15 | . 17 7 19 Hover 10 | . 10 16 . Device 9 | . 10 8 6 Storage 12 | . 14 11 9 Energy Gun 5 | . 5 6 6 Ballistic Gun 15 | . 21 7 . Naked Turns . | . . . . Heaviest Build 39 | 12 30 29 39 Greatest Support 30 | 20 20 30 30 Greatest Overweight (x) 9 | . 9 8 6 Average Overweight (x) 1 | . 1 1 1 Largest Inventory Capacity 15 | 8 15 15 15 Average Capacity 13 | 6 13 15 15 Most Carried 10 | 3 10 10 2 Average Carried 4 | . 5 5 1 Final Capacity 15 | 8 15 15 15 Final Carried 10 | . 10 1 . Class Distribution -------------------- 70% | Mutant 29% | Scavenger-Mutant Dominant Class ---------------- Mutant | -10/Materials Mutant | -9/Materials Scavenger-Mutant | -8/Materials Resources | -11 -10 -9 -8 ----------- Run | Yrd Mat Mat Mat Matter Collected 651 | 250 160 241 . Remotely . | . . . . Salvage Created 663 | . 302 361 . Parts 52 | . 29 23 . Haulers Intercepted . | . . . . Recyclers Shooed 6 | . . 6 . Parts Field Recycled . | . . . . Retrieved Matter . | . . . . Parts Self-Destructed . | . . . . Prevented . | . . . . Kills | -11 -10 -9 -8 ------- Run | Yrd Mat Mat Mat Combat Hostiles Destroyed 22 | . 12 10 . Guns 22 | . 12 10 . Classes Destroyed 5 | . 2 3 . Recycler 1 | . . 1 . Watcher 1 | . . 1 . Swarmer 9 | . 6 3 . Grunt 12 | . 6 6 . Sentry 1 | . . 1 . Best Kill Streak 4 | . 3 4 . Combat Bots Only 4 | . 3 4 . Max Kills in Single Turn 2 | . 2 1 . Gunslinging . | . . . . Exploded . | . . . . Melee . | . . . . Uniques/NPCs Destroyed . | . . . . Combat | -11 -10 -9 -8 -------- Run | Yrd Mat Mat Mat Hostile Shots Fired 279 | . 113 78 88 Missed 74 | . 35 21 18 Damage Taken 2673 | . 705 651 1317 Core 882 | . 161 165 556 Absorbed by Shields 93 | . 55 38 . Redirected to Shielding 51 | . . . 51 Core Remaining (%) 64 | 100 35 58 . Volleys Fired 117 | . 55 58 4 Largest 2 | . 2 2 1 Hottest 115 | . 115 85 100 Shots Fired 184 | . 104 76 4 Gun 179 | . 103 76 . Cannon . | . . . . Launcher . | . . . . Special 5 | . 1 . 4 Kinetic 113 | . 76 37 . Thermal 71 | . 28 39 4 Explosive . | . . . . Electromagnetic . | . . . . Robot Hit Streak 13 | . 13 9 1 Robot Miss Streak 9 | . 9 6 . Penetration Max . | . . . . Secondary Targets 1 | . 1 . . Max Gunslinging Chain 1 | . 1 . . Shots Hit Robots 115 | . 49 65 1 Core Hits 92 | . 24 68 . Critical Kills . | . . . . Critical Parts Destroyed . | . . . . Critical Strikes 1 | . 1 . . Burn 1 | . 1 . . Melee Attacks . | . . . . Impact . | . . . . Slashing . | . . . . Piercing . | . . . . Sneak Attacks . | . . . . Combat Hostiles . | . . . . Follow-up Attacks . | . . . . Damage Inflicted 1405 | . 549 806 50 Guns 1355 | . 549 806 . Cannons . | . . . . Explosions . | . . . . Melee . | . . . . Ramming 2 | . . . 2 Kinetic 576 | . 358 218 . Thermal 827 | . 191 588 48 Explosive . | . . . . Electromagnetic . | . . . . Impact . | . . . . Slashing . | . . . . Piercing . | . . . . Highest Corruption 9 | . . . 9 Average Corruption 8 | . . . 8 Corruption Purged . | . . . . Corruption Blocked . | . . . . Effects 3 | . . . 3 Message Errors 2 | . . . 2 Heat Flow Errors 1 | . . . 1 Overload Shots . | . . . . Overflow Damage . | . . . . Projectiles . | . . . . Explosions . | . . . . Melee . | . . . . Knockbacks . | . . . . Impact . | . . . . Kinetic . | . . . . Secondary . | . . . . Self-Inflicted Damage 1 | . . . 1 Shots . | . . . . Rammed 2 | . . . 2 Targets Rammed 2 | . . . 2 Kicked . | . . . . Crushed . | . . . . Highest Temperature 326 | . 326 134 165 Average Temperature 62 | . 80 37 47 Received Heat Transfer 921 | . 204 321 396 Effects 3 | . 3 . . Energy Bleed 2 | . 2 . . Short Circuit 1 | . 1 . . Siege Activations . | . . . . Robots Corrupted . | . . . . Combat Hostiles . | . . . . Parts Fried . | . . . . Impact Corruptions . | . . . . Robots Melted . | . . . . Combat Hostiles . | . . . . Parts Melted 1 | . 1 . . Heat Transferred 1479 | . 629 750 100 Parts Sabotaged . | . . . . Parts Stolen . | . . . . Parts Stripped . | . . . . Power Chain Reactions . | . . . . Alert | -11 -10 -9 -8 ------- Run | Yrd Mat Mat Mat Peak Influence 250 | . 250 167 40 Initial 16 | . . . 16 Average 67 | . 82 61 17 Maximum Alert Level 1 | . 1 . . Low Security (%) 95 | 100 92 100 100 Level 1 4 | . 7 . . Level 2 . | . . . . Level 3 . | . . . . Level 4 . | . . . . Level 5 . | . . . . High Security . | . . . . Max Security . | . . . . Squads Dispatched 3 | . 3 . . Investigation 1 | . 1 . . Extermination . | . . . . Reinforcement 2 | . 2 . . Assault . | . . . . Garrison . | . . . . Intercept . | . . . . Searches Triggered . | . . . . Construction Impeded . | . . . . Haulers Reinforced . | . . . . Active Scanning Responses . | . . . . Cargo Convoy Interrupts . | . . . . Stealth | -11 -10 -9 -8 --------- Run | Yrd Mat Mat Mat Distress Signals 1 | . . 1 . Communications Jammed . | . . . . Distress Signals . | . . . . Times Spotted 41 | . 22 16 3 Peak Tracking Total 5 | . 4 5 3 Tactical Retreats 1 | . 1 . . Traps | -11 -10 -9 -8 ------- Run | Yrd Mat Mat Mat Traps Triggered . | . . . . Indirectly . | . . . . Trap Hack Attempts 18 | . 18 . . Triggered . | . . . . Disarmed 2 | . 2 . . Reprogrammed . | . . . . Reused . | . . . . Traps Extracted . | . . . . Installed . | . . . . Triggered . | . . . . Machines | -11 -10 -9 -8 ---------- Run | Yrd Mat Mat Mat Machines Disabled . | . . . . Max in Single Turn . | . . . . Machines Repaired . | . . . . Machines Dismantled . | . . . . Machines Sabotaged . | . . . . Overloaded Fab Kills . | . . . . Hacking | -11 -10 -9 -8 --------- Run | Yrd Mat Mat Mat Machines Accessed 9 | . 5 2 2 Terminals 8 | . 5 2 1 Fabricators . | . . . . Repair Stations . | . . . . Recycling Units . | . . . . Scanalyzers . | . . . . Garrison Access 1 | . . . 1 Total Hacks 15 | . 9 3 3 Successful 6 | . 2 2 2 Failed 9 | . 7 1 1 Catastrophic 2 | . 2 . . Database Lockouts . | . . . . Manual . | . . . . Terminals 14 | . 9 3 2 Fabricators . | . . . . Repair Stations . | . . . . Recycling Units . | . . . . Scanalyzers . | . . . . Garrison Access 1 | . . . 1 Terminal Hacks 5 | . 2 2 1 Prototype ID Bank 1 | . . . 1 Branch Access Points 1 | . . 1 . Emergency Access Points 1 | . 1 . . Locate Traps 1 | . 1 . . Zone Layout 1 | . . 1 . Fabricator Hacks . | . . . . Repair Station Hacks . | . . . . Recycling Unit Hacks . | . . . . Scanalyzer . | . . . . Garrison Access Hacks 1 | . . . 1 Unlock Access 1 | . . . 1 Unauthorized Hacks . | . . . . Terminals . | . . . . Fabricators . | . . . . Repair Stations . | . . . . Recycling Units . | . . . . Scanalyzers . | . . . . Garrison Access . | . . . . Data Cores Recovered . | . . . . Used . | . . . . Hacking Detections 4 | . 3 1 . Full Trace Events 2 | . 2 . . Feedback Events . | . . . . Feedback Blocked . | . . . . Robot Schematics Acquired . | . . . . Robots Built . | . . . . Authchips . | . . . . Time . | . . . . Total Robot Build Rating . | . . . . Part Schematics Acquired . | . . . . Parts Built . | . . . . Authchips . | . . . . Time . | . . . . Total Part Build Rating . | . . . . Parts Repaired . | . . . . Time . | . . . . Parts Recycled . | . . . . Recycled Matter . | . . . . Retrieved Matter . | . . . . Retrieved Components . | . . . . Parts Scanalyzed . | . . . . Part Schematics Acquired . | . . . . Parts Damaged . | . . . . Bothacking | -11 -10 -9 -8 ------------ Run | Yrd Mat Mat Mat Used RIF Installer . | . . . . Robots Hacked . | . . . . Non-combat . | . . . . Combat . | . . . . Robot Hacks Applied . | . . . . Relay Couplers Released . | . . . . Fabnet Peak Effective % . | . . . . Robots Rewired . | . . . . Allies Hacked . | . . . . Hacks Repelled . | . . . . Allies | -11 -10 -9 -8 -------- Run | Yrd Mat Mat Mat Total Allies . | . . . . Largest Group . | . . . . Highest-Rated Group . | . . . . Highest-Rated Ally . | . . . . Total Orders . | . . . . Ally Attacks . | . . . . Total Damage . | . . . . Kills . | . . . . Allies Corrupted . | . . . . Allies Melted . | . . . . Intel | -11 -10 -9 -8 ------- Run | Yrd Mat Mat Mat Robot Analysis Total . | . . . . Derelict Logs Recovered . | . . . . Drone Launches . | . . . . Drone Recoveries . | . . . . Exploration | -11 -10 -9 -8 ------------- Run | Yrd Mat Mat Mat Turns Passed 2059 | 76 1258 508 217 Spaces Moved 1024 | 62 641 229 92 Core 29 | 14 4 1 10 Treads . | . . . . Legs 618 | 48 415 73 82 Wheels . | . . . . Hover 377 | . 222 155 . Flight . | . . . . Fastest Speed 50 | 50 120 112 120 Average Speed 160 | 104 163 149 202 Slowest Speed 500 | 120 500 450 350 Overloaded Moves . | . . . . Propulsion Burnouts . | . . . . Robots Hopped . | . . . . Cave-ins Triggered 1 | . . . 1 Exploration Rate (%) 30 | 4 86 21 9 Regions Visited 3 Branch Regions . Pre-discovered Areas . | . . . . Known Exits Taken . | . . . . Unknown Exits Taken 3 | 1 1 1 . Scrap Searched . | . . . . Spaces Dug 3 | . 1 . 2 Terrain Destroyed 3 | . 1 . 2 Melee . | . . . . Projectile 3 | . 1 . 2 AOE . | . . . . Terrain Rammed . | . . . . Walls Destroyed . | . . . . Machines Disabled . | . . . . Actions | -11 -10 -9 -8 --------- Run | Yrd Mat Mat Mat Total 1268 | 73 759 329 107 Wait 18 | . . 18 . Move 1021 | 61 640 228 92 Hop . | . . . . Pick Up 34 | 6 20 4 4 Fast Attach . | . . . . Attach 31 | 6 8 12 5 Detach 5 | . 2 3 . Swap 10 | . 8 2 . Drop 12 | . 8 4 . Fire 117 | . 55 58 4 Melee . | . . . . Ram 2 | . . . 2 Kick . | . . . . Crush . | . . . . Escape Stasis . | . . . . Rewire . | . . . . Trap 18 | . 18 . . Miscellaneous . | . . . . Route ------- -11/Scrapyard -10/Materials (discovered 3 exits: *Mat x2 / [*Min]) -9/Materials (discovered 2 exits: *Mat / Min) -8/Materials (discovered 1 exit: Gar) History --------- Turn | Location | Event 6 | -11/Scrapyard | Discovered new exit (range 15) 77 | -11/Scrapyard | Entered Materials 308 | -10/Materials | Build established: Mutant 357 | -10/Materials | Discovered new exit (range 16) 578 | -10/Materials | Discovered new exit (range 3) 714 | -10/Materials | Build established: Scavenger-Mutant 783 | -10/Materials | Discovered new exit (range 13) 952 | -10/Materials | Core integrity fell below 50% 1159 | -10/Materials | Build established: Mutant 1335 | -10/Materials | Entered another Materials area 1335 | -9/Materials | Evolved 2 slots: Propulsion x2 1506 | -9/Materials | Lost 3 parts (1n1u1w) 1572 | -9/Materials | Identified exit to Mines 1631 | -9/Materials | Discovered new exit (range 20) 1694 | -9/Materials | Lost 3 parts (1p2n) 1843 | -9/Materials | Entered another Materials area 1843 | -8/Materials | Evolved 2 slots: Power x1, Utility x1 1863 | -8/Materials | Identified exit to Garrison 2015 | -8/Materials | Crushed by falling debris 2032 | -8/Materials | Core integrity fell below 50% 2052 | -8/Materials | Core integrity fell below 20% 2060 | -8/Materials | Destroyed by Y-45 Defender with Beam Rifle Last Messages --------------- Aluminum Leg destroyed. System corrupted by crushing effect (+4). Imp. Heat Sink destroyed. System corrupted by crushing effect (+2). K-01 Serf collects debris. RHG4 XDJ0WL System corrupted: Heat flow error (+196). Cesium-ion Thruster destroyed. K-01 Serf collects debris. UTJFE>:AS IZKK%IZJCOL6APACYFSNR6P>F Critical hit (Burn: +37). Slammed into Y-45 Defender. Destabilizing: System corrupted (+1). Slammed into Y-45 Defender. Critical hit (Burn: +37). Map ----- +----------------------------------------------------+ | ?????????????????????????????????????????????????? | | ?????????????????????????????????????????????????? | | ?????????????????????????????????????????????????? | | ?????????????????????????????????????????????????? | | ?????????????????????????????????????????????????? | | ?????????????????????????????????????????????????? | | ?????????????????????????????????????????????????? | | ?????????????????????????????????????????????????? | | ?????????????????????????????????????????????????? | | ?????????????????????????????????????????????????? | | ??????????????????????? ??????????????????????? | | ??????????????????????? ??????????????????????? | | ??????????????????????? ??????????????????????? | | ??????????????????????? #?????????????????????? | | ??????????????????????? +?????????????????????? | | ???????????????????????# #?????????????????????? | | ???????????????????????# #?????????????????????? | | ???????????????????????# #?????????????????????? | | ??????????????????????? ?????????????????????? | | ???????????????????????? ??????????????????????? | | ???????????????????????? ??????????????????????? | | ???????????????????????? ??????????????????????? | | ???????????????????????? ??????????????????????? | | ????????????????????????# ########???????????????? | | ????????????????????????#Y# #???????????????? | | ????????????????????????#@/ """ #???????????????? | | ????????????????????????#Y# "T" #???????????????? | | ????????????????????????#Y#?? #???????????????? | | ????????????????????????# #???? #???????????????? | | ????????????????????????# #??????#???????????????? | | ????????????????????????# #??????????????????????? | | ????????????????????????# #??????????????????????? | | ????????????????????????# #??????????????????????? | | ????????????????????????# #??????????????????????? | | ????????????????????????# #??????????????????????? | | ????????????????????????# #??????????????????????? | | ????????????????????????# #??????????????????????? | | ???????????????????????## #??????????????????????? | | ???????????????????????## #??????????????????????? | | ???????????????????????#"+#####??????????????????? | | ???????????????????????# !#??????????????????? | | ???????????????????????# #??????????????????? | | ???????????????????????#!!! #?#########????????? | | ???????????????????????#!!! ##? #????????? | | ???????????????????????#!! #??? ?????????? | | ???????????????????????# ##??### #########??? | | ???????????????????#+#+####+####### # !!!#??? | | ???????????????????# + !!!#??? | | ???????????????????# # !! #??? | | ???????????????????+ # #??? | +----------------------------------------------------+ Best States ------------- Heat Dissipation 45 Energy Generation 23 Energy Capacity 380 Matter Stores 300 Matter Capacity 300 Sight Range 16 Terrain Scan Density 10 Propulsion Shielding 33 Evasion (%) 55 Item Schematics ----------------- None Robot Schematics ------------------ None Fabricated ------------ Nothing Alien Tech Used ----------------- None Achievements -------------- Hey, That's Mine! Challenges ------------ None Game ------ Seed UltimateMetafiberCalibrator Manual? 0 Play Time 00:20:23 Cumulative 3.7 hours Start 2024.04.07 @ 00:49:16 End 2024.04.07 @ 01:07:39 Sessions 1 Manual Loads 0 Difficulty Rogue Special Mode None Game No. 8 Rogue 8 Adventurer 0 Explorer 0 Win Type - Total 0 Types 0/0/0/0/0/0/0/0/0 Lore% 1 Gallery% 8 Achievement% 8 Wizard Run 0 Options --------- Layout 1 ASCII 0 Keyboard 0 Movement Arrows Keybinds 0 Fullscreen 1 Font 24/Smallcaps Map View 50x35 Zoom Use 0% Tactical HUD 0 Map Filters NONE Filters NONE Steam 1 RUN: a6b498d1-1600-4401-b84b-5e2b035476a9